[Event "Titled Tuesday Blitz January 17 Late 2023"]
[White "Sielecki, Christof"]
[Black "Ward, Ieuan C"]
[WhiteFideId "4620437"]
[BlackFideId "406627"]
[WhiteElo "2419"]
[BlackElo "2028"]
[Result "0-1"]
[Round "01"]
[TimeControl "180+2"]
[Date "2023.01.17"]
[WhiteClock "0:00:02"]
[BlackClock "0:00:03"]

1. e4 {[%clk 0:02:57]}  c5 {[%clk 0:02:59]} 2. Nf3 {[%clk 0:02:54]}  d6 {[%clk 0:03:00]} 3. Bb5+ {[%clk 0:02:51]}  Bd7 {[%clk 0:03:00]} 4. Bxd7+ {[%clk 0:02:50]}  Qxd7 {[%clk 0:03:01]} 5. c4 {[%clk 0:02:50]}  g6 {[%clk 0:03:01]} 6. Nc3 {[%clk 0:02:48]}  Bg7 {[%clk 0:03:01]} 7. d4 {[%clk 0:02:48]}  cxd4 {[%clk 0:03:01]} 8. Nxd4 {[%clk 0:02:49]}  Nf6 {[%clk 0:03:00]} 9. f3 {[%clk 0:02:48]}  O-O {[%clk 0:03:01]} 10. Be3 {[%clk 0:02:49]}  Nc6 {[%clk 0:03:01]} 11. O-O {[%clk 0:02:49]}  a6 {[%clk 0:03:00]} 12. Qd3 {[%clk 0:02:48]}  Ne5 {[%clk 0:03:00]} 13. Qe2 {[%clk 0:02:48]}  Rac8 {[%clk 0:02:57]} 14. b3 {[%clk 0:02:45]}  b5 {[%clk 0:02:57]} 15. Nd5 {[%clk 0:02:45]}  Nxd5 {[%clk 0:02:41]} 16. cxd5 {[%clk 0:02:46]}  Qb7 {[%clk 0:02:25]} 17. h3 {[%clk 0:02:19]}  Nd7 {[%clk 0:02:19]} 18. Rac1 {[%clk 0:02:08]}  Rxc1 {[%clk 0:02:14]} 19. Rxc1 {[%clk 0:02:09]}  Rc8 {[%clk 0:02:13]} 20. Nc6 {[%clk 0:02:06]}  Kf8 {[%clk 0:02:13]} 21. Qd2 {[%clk 0:01:51]}  Ne5 {[%clk 0:02:05]} 22. Na5 {[%clk 0:01:42]}  Qa8 {[%clk 0:01:43]} 23. f4 {[%clk 0:01:38]}  Nd7 {[%clk 0:01:41]} 24. Nc6 {[%clk 0:01:29]}  Nb8 {[%clk 0:01:20]} 25. Qc2 {[%clk 0:01:23]}  e6 {[%clk 0:01:07]} 26. Kh1 {[%clk 0:01:12]}  exd5 {[%clk 0:01:06]} 27. exd5 {[%clk 0:01:13]}  Nd7 {[%clk 0:01:03]} 28. f5 {[%clk 0:01:06]}  Re8 {[%clk 0:01:02]} 29. Bf4 {[%clk 0:01:03]}  Ne5 {[%clk 0:00:59]} 30. fxg6 {[%clk 0:01:00]}  hxg6 {[%clk 0:00:58]} 31. Rf1 {[%clk 0:00:53]}  Kg8 {[%clk 0:00:54]} 32. Bg5 {[%clk 0:00:46]}  Qb7 {[%clk 0:00:45]} 33. Bf6 {[%clk 0:00:31]}  Bxf6 {[%clk 0:00:42]} 34. Rxf6 {[%clk 0:00:32]}  Kg7 {[%clk 0:00:40]} 35. Rxd6 {[%clk 0:00:26]}  Qc7 {[%clk 0:00:34]} 36. Qc5 {[%clk 0:00:19]}  Nd3 {[%clk 0:00:30]} 37. Qd4+ {[%clk 0:00:17]}  Kg8 {[%clk 0:00:23]} 38. Qxd3 {[%clk 0:00:06]}  Qxd6 {[%clk 0:00:23]} 39. g3 {[%clk 0:00:07]}  Qc5 {[%clk 0:00:17]} 40. Kg2 {[%clk 0:00:07]}  Re1 {[%clk 0:00:16]} 41. h4 {[%clk 0:00:03]}  Qg1+ {[%clk 0:00:15]} 42. Kh3 {[%clk 0:00:04]}  Qh1+ {[%clk 0:00:14]} 43. Kg4 {[%clk 0:00:04]}  Re4+ {[%clk 0:00:13]} 44. Kg5 {[%clk 0:00:05]}  Qg2 {[%clk 0:00:09]} 45. d6 {[%clk 0:00:04]}  f6+ {[%clk 0:00:06]} 46. Kxg6 {[%clk 0:00:04]}  Rg4+ {[%clk 0:00:05]} 47. Kh6 {[%clk 0:00:04]}  Qxc6 {[%clk 0:00:02]} 48. Qh7+ {[%clk 0:00:01]}  Kf8 {[%clk 0:00:02]} 49. Qe7+ {[%clk 0:00:01]}  Kg8 {[%clk 0:00:03]} 50. Qh7+ {[%clk 0:00:02]}  Kf8 {[%clk 0:00:03]} 0-1


[Site "https://www.chess.com"]

[Event "Titled Tuesday Blitz January 17 Late 2023"]
[White "Cepo, Toni"]
[Black "Pert, Richard G"]
[WhiteFideId "4675916"]
[BlackFideId "404748"]
[WhiteElo "2145"]
[BlackElo "2412"]
[Result "0-1"]
[Round "01"]
[TimeControl "180+2"]
[Date "2023.01.17"]
[WhiteClock "0:00:33"]
[BlackClock "0:00:15"]

1. e4 {[%clk 0:02:56]}  c5 {[%clk 0:02:59]} 2. Nf3 {[%clk 0:02:56]}  d6 {[%clk 0:02:59]} 3. d4 {[%clk 0:02:55]}  cxd4 {[%clk 0:03:00]} 4. Nxd4 {[%clk 0:02:53]}  Nf6 {[%clk 0:03:00]} 5. Nc3 {[%clk 0:02:52]}  g6 {[%clk 0:03:01]} 6. Be3 {[%clk 0:02:51]}  Bg7 {[%clk 0:03:01]} 7. f3 {[%clk 0:02:51]}  Nc6 {[%clk 0:03:01]} 8. Qd2 {[%clk 0:02:49]}  O-O {[%clk 0:03:02]} 9. O-O-O {[%clk 0:02:48]}  d5 {[%clk 0:03:02]} 10. Qe1 {[%clk 0:02:47]}  e5 {[%clk 0:02:59]} 11. Nxc6 {[%clk 0:02:47]}  bxc6 {[%clk 0:02:59]} 12. exd5 {[%clk 0:02:46]}  Nxd5 {[%clk 0:03:00]} 13. Bc4 {[%clk 0:02:45]}  Be6 {[%clk 0:02:59]} 14. Ne4 {[%clk 0:02:39]}  Qc7 {[%clk 0:02:53]} 15. Bc5 {[%clk 0:02:38]}  Rfd8 {[%clk 0:02:52]} 16. h4 {[%clk 0:02:24]}  h6 {[%clk 0:02:51]} 17. h5 {[%clk 0:02:23]}  f5 {[%clk 0:02:40]} 18. Nc3 {[%clk 0:02:16]}  g5 {[%clk 0:02:30]} 19. Ba3 {[%clk 0:01:59]}  Kh8 {[%clk 0:02:24]} 20. Bxd5 {[%clk 0:01:49]}  cxd5 {[%clk 0:02:24]} 21. Kb1 {[%clk 0:01:48]}  d4 {[%clk 0:02:20]} 22. Na4 {[%clk 0:01:42]}  Rd5 {[%clk 0:01:58]} 23. c4 {[%clk 0:01:31]}  Qxc4 {[%clk 0:01:52]} 24. b3 {[%clk 0:01:30]}  Qb5 {[%clk 0:01:47]} 25. Rc1 {[%clk 0:01:26]}  e4 {[%clk 0:01:44]} 26. fxe4 {[%clk 0:01:26]}  fxe4 {[%clk 0:01:43]} 27. Rf1 {[%clk 0:01:24]}  e3 {[%clk 0:01:34]} 28. Rc5 {[%clk 0:01:19]}  Qd3+ {[%clk 0:01:30]} 29. Ka1 {[%clk 0:01:18]}  Qe4 {[%clk 0:01:13]} 30. Bb2 {[%clk 0:01:15]}  Rad8 {[%clk 0:01:02]} 31. Rc7 {[%clk 0:01:12]}  Be5 {[%clk 0:00:59]} 32. Rxa7 {[%clk 0:01:09]}  d3 {[%clk 0:00:58]} 33. Nc3 {[%clk 0:01:05]}  Qd4 {[%clk 0:00:54]} 34. Re7 {[%clk 0:00:54]}  d2 {[%clk 0:00:50]} 35. Qb1 {[%clk 0:00:52]}  Qd3 {[%clk 0:00:33]} 36. Nxd5 {[%clk 0:00:49]}  Qxb1+ {[%clk 0:00:28]} 37. Kxb1 {[%clk 0:00:49]}  Bxb2 {[%clk 0:00:17]} 38. Kxb2 {[%clk 0:00:46]}  e2 {[%clk 0:00:17]} 39. Rf6 {[%clk 0:00:41]}  d1=Q {[%clk 0:00:16]} 40. Rxh6+ {[%clk 0:00:41]}  Kg8 {[%clk 0:00:16]} 41. Nf6+ {[%clk 0:00:40]}  Kf8 {[%clk 0:00:16]} 42. Rc7 {[%clk 0:00:33]}  Qd4+ {[%clk 0:00:15]} 43. Ka3 {[%clk 0:00:33]}  Ra8+ {[%clk 0:00:15]} 0-1


[Site "https://www.chess.com"]

[Event "Titled Tuesday Blitz January 17 Late 2023"]
[White "Rose, Felix"]
[Black "Hirneise, Jens"]
[WhiteFideId "5105722"]
[BlackFideId "24614734"]
[WhiteElo "2091"]
[BlackElo "2277"]
[Result "0-1"]
[Round "01"]
[TimeControl "180+2"]
[Date "2023.01.17"]
[WhiteClock "0:00:01"]
[BlackClock "0:00:22"]

1. e4 {[%clk 0:02:57]}  c6 {[%clk 0:02:58]} 2. d4 {[%clk 0:02:57]}  d5 {[%clk 0:02:59]} 3. e5 {[%clk 0:02:57]}  Bf5 {[%clk 0:02:58]} 4. h4 {[%clk 0:02:57]}  h5 {[%clk 0:02:58]} 5. Bd3 {[%clk 0:02:50]}  Bxd3 {[%clk 0:02:57]} 6. Qxd3 {[%clk 0:02:50]}  e6 {[%clk 0:02:57]} 7. Bg5 {[%clk 0:02:50]}  Qa5+ {[%clk 0:02:57]} 8. Nd2 {[%clk 0:02:49]}  Qa6 {[%clk 0:02:55]} 9. c4 {[%clk 0:02:49]}  Nd7 {[%clk 0:02:53]} 10. Ngf3 {[%clk 0:02:44]}  Ne7 {[%clk 0:02:53]} 11. O-O {[%clk 0:02:40]}  Nf5 {[%clk 0:02:53]} 12. Qc2 {[%clk 0:02:35]}  Be7 {[%clk 0:02:39]} 13. cxd5 {[%clk 0:02:27]}  cxd5 {[%clk 0:02:39]} 14. Bxe7 {[%clk 0:02:12]}  Nxe7 {[%clk 0:02:31]} 15. Rfc1 {[%clk 0:01:59]}  O-O {[%clk 0:02:24]} 16. Ng5 {[%clk 0:01:56]}  Nf5 {[%clk 0:02:24]} 17. Ndf3 {[%clk 0:01:51]}  Nb6 {[%clk 0:02:22]} 18. b3 {[%clk 0:01:25]}  Rac8 {[%clk 0:02:17]} 19. Qd2 {[%clk 0:01:25]}  Qa3 {[%clk 0:02:17]} 20. g3 {[%clk 0:01:13]}  a5 {[%clk 0:02:16]} 21. Kg2 {[%clk 0:01:09]}  a4 {[%clk 0:02:15]} 22. bxa4 {[%clk 0:01:01]}  Qxa4 {[%clk 0:02:10]} 23. Qb2 {[%clk 0:00:50]}  Nc4 {[%clk 0:01:54]} 24. Qxb7 {[%clk 0:00:47]}  Rb8 {[%clk 0:01:49]} 25. Qc7 {[%clk 0:00:46]}  Rb2 {[%clk 0:01:41]} 26. Rab1 {[%clk 0:00:26]}  Qxa2 {[%clk 0:01:34]} 27. Ra1 {[%clk 0:00:07]}  Rxf2+ {[%clk 0:01:31]} 28. Kh3 {[%clk 0:00:07]}  Qe2 {[%clk 0:01:19]} 29. Ra8 {[%clk 0:00:07]}  Rxa8 {[%clk 0:00:59]} 30. Qxf7+ {[%clk 0:00:08]}  Kh8 {[%clk 0:00:59]} 31. Qxh5+ {[%clk 0:00:07]}  Nh6 {[%clk 0:00:56]} 32. Qg6 {[%clk 0:00:07]}  Kg8 {[%clk 0:00:41]} 33. Qxe6+ {[%clk 0:00:07]}  Kh8 {[%clk 0:00:31]} 34. Qg6 {[%clk 0:00:08]}  Kg8 {[%clk 0:00:31]} 35. Ne6 {[%clk 0:00:03]}  Nf5 {[%clk 0:00:23]} 36. Qxf5 {[%clk 0:00:01]}  Qxf3 {[%clk 0:00:22]} 0-1


[Site "https://www.chess.com"]

[Event "Titled Tuesday Blitz January 17 Late 2023"]
[White "Martynov, Pavel"]
[Black "Thiel, Thomas"]
[WhiteFideId "4101260"]
[BlackFideId "4615964"]
[WhiteElo "2414"]
[BlackElo "2234"]
[Result "1-0"]
[Round "01"]
[TimeControl "180+2"]
[Date "2023.01.17"]
[WhiteClock "0:00:16"]
[BlackClock "0:00:48"]

1. e4 {[%clk 0:03:00]}  d5 {[%clk 0:02:59]} 2. exd5 {[%clk 0:02:57]}  Nf6 {[%clk 0:02:58]} 3. Bb5+ {[%clk 0:02:56]}  Nbd7 {[%clk 0:02:56]} 4. c4 {[%clk 0:02:55]}  a6 {[%clk 0:02:55]} 5. Ba4 {[%clk 0:02:53]}  b5 {[%clk 0:02:54]} 6. cxb5 {[%clk 0:02:46]}  Nxd5 {[%clk 0:02:53]} 7. Nc3 {[%clk 0:02:38]}  N5b6 {[%clk 0:02:39]} 8. Nge2 {[%clk 0:02:26]}  Nxa4 {[%clk 0:02:32]} 9. Qxa4 {[%clk 0:02:25]}  Bb7 {[%clk 0:02:31]} 10. O-O {[%clk 0:02:20]}  e6 {[%clk 0:02:23]} 11. d4 {[%clk 0:02:11]}  Nb6 {[%clk 0:02:19]} 12. Qb3 {[%clk 0:02:11]}  Bd6 {[%clk 0:02:07]} 13. Be3 {[%clk 0:01:08]}  O-O {[%clk 0:02:02]} 14. h3 {[%clk 0:00:50]}  Nd5 {[%clk 0:01:58]} 15. a4 {[%clk 0:00:42]}  axb5 {[%clk 0:01:48]} 16. Nxb5 {[%clk 0:00:40]}  Rb8 {[%clk 0:01:41]} 17. Nxd6 {[%clk 0:00:33]}  cxd6 {[%clk 0:01:42]} 18. Qd3 {[%clk 0:00:28]}  Qb6 {[%clk 0:01:39]} 19. a5 {[%clk 0:00:27]}  Qa7 {[%clk 0:01:39]} 20. a6 {[%clk 0:00:27]}  Bc8 {[%clk 0:01:37]} 21. Nc3 {[%clk 0:00:26]}  Nxe3 {[%clk 0:01:31]} 22. fxe3 {[%clk 0:00:24]}  Rxb2 {[%clk 0:01:30]} 23. Rf2 {[%clk 0:00:21]}  Rxf2 {[%clk 0:01:27]} 24. Kxf2 {[%clk 0:00:22]}  Bd7 {[%clk 0:01:06]} 25. Ne4 {[%clk 0:00:21]}  d5 {[%clk 0:00:56]} 26. Nc5 {[%clk 0:00:21]}  Bc6 {[%clk 0:00:56]} 27. Rb1 {[%clk 0:00:17]}  e5 {[%clk 0:00:55]} 28. Qb3 {[%clk 0:00:16]}  exd4 {[%clk 0:00:53]} 29. exd4 {[%clk 0:00:17]}  h6 {[%clk 0:00:51]} 30. Qb6 {[%clk 0:00:17]}  Ra8 {[%clk 0:00:48]} 31. Qxc6 {[%clk 0:00:16]} 1-0


[Site "https://www.chess.com"]

[Event "Titled Tuesday Blitz January 17 Late 2023"]
[White "Almedina Ortiz, Edgardo J."]
[Black "Taboas Rodriguez, Daniel"]
[WhiteFideId "3100197"]
[BlackFideId "2208466"]
[WhiteElo "2156"]
[BlackElo "2371"]
[Result "0-1"]
[Round "01"]
[TimeControl "180+2"]
[Date "2023.01.17"]
[WhiteClock "0:00:01"]
[BlackClock "0:00:55"]

1. Nf3 {[%clk 0:03:00]}  Nf6 {[%clk 0:03:00]} 2. c4 {[%clk 0:02:59]}  g6 {[%clk 0:03:00]} 3. Nc3 {[%clk 0:02:59]}  Bg7 {[%clk 0:02:59]} 4. e4 {[%clk 0:02:58]}  d6 {[%clk 0:02:59]} 5. d4 {[%clk 0:02:58]}  O-O {[%clk 0:02:59]} 6. Be2 {[%clk 0:02:58]}  e5 {[%clk 0:02:57]} 7. O-O {[%clk 0:02:58]}  Nc6 {[%clk 0:02:56]} 8. d5 {[%clk 0:02:57]}  Ne7 {[%clk 0:02:56]} 9. Ne1 {[%clk 0:02:55]}  Ne8 {[%clk 0:02:56]} 10. Be3 {[%clk 0:02:55]}  f5 {[%clk 0:02:55]} 11. f3 {[%clk 0:02:55]}  f4 {[%clk 0:02:55]} 12. Bf2 {[%clk 0:02:54]}  g5 {[%clk 0:02:56]} 13. c5 {[%clk 0:02:50]}  Rf6 {[%clk 0:02:49]} 14. a4 {[%clk 0:02:41]}  Rg6 {[%clk 0:02:49]} 15. a5 {[%clk 0:02:34]}  h5 {[%clk 0:02:48]} 16. cxd6 {[%clk 0:02:11]}  cxd6 {[%clk 0:02:48]} 17. Nb5 {[%clk 0:02:05]}  g4 {[%clk 0:02:45]} 18. Bxa7 {[%clk 0:01:57]}  g3 {[%clk 0:02:31]} 19. h3 {[%clk 0:01:47]}  Bxh3 {[%clk 0:02:21]} 20. gxh3 {[%clk 0:01:37]}  g2 {[%clk 0:02:20]} 21. Rf2 {[%clk 0:01:33]}  Qd7 {[%clk 0:02:18]} 22. Rxg2 {[%clk 0:01:28]}  Qxh3 {[%clk 0:02:18]} 23. Bf1 {[%clk 0:01:19]}  Rxg2+ {[%clk 0:02:09]} 24. Bxg2 {[%clk 0:01:18]}  Qd7 {[%clk 0:02:10]} 25. Bf1 {[%clk 0:01:05]}  Bf6 {[%clk 0:02:06]} 26. Bf2 {[%clk 0:00:53]}  Kh7 {[%clk 0:02:06]} 27. b4 {[%clk 0:00:48]}  Ng6 {[%clk 0:02:02]} 28. Rc1 {[%clk 0:00:43]}  Bh4 {[%clk 0:02:01]} 29. Qd2 {[%clk 0:00:39]}  Kh6 {[%clk 0:01:51]} 30. Bxh4 {[%clk 0:00:33]}  Nxh4 {[%clk 0:01:52]} 31. Qh2 {[%clk 0:00:30]}  Qe7 {[%clk 0:01:47]} 32. Bh3 {[%clk 0:00:28]}  Qg5+ {[%clk 0:01:43]} 33. Kf2 {[%clk 0:00:24]}  Nf6 {[%clk 0:01:43]} 34. Ng2 {[%clk 0:00:21]}  Nxe4+ {[%clk 0:01:04]} 35. fxe4 {[%clk 0:00:19]}  f3 {[%clk 0:01:05]} 36. Nxh4 {[%clk 0:00:14]}  Qd2+ {[%clk 0:01:05]} 37. Kg1 {[%clk 0:00:08]}  Rg8+ {[%clk 0:01:00]} 38. Bg2 {[%clk 0:00:01]}  Qxc1+ {[%clk 0:00:55]} 39. Kf2 {[%clk 0:00:01]}  fxg2 {[%clk 0:00:55]} 0-1


[Site "https://www.chess.com"]

[Event "Titled Tuesday Blitz January 17 Late 2023"]
[White "Panda, Vedic"]
[Black "Tomb, Maroun"]
[WhiteFideId "30903416"]
[BlackFideId "5300398"]
[WhiteElo "2024"]
[BlackElo "2090"]
[Result "1-0"]
[Round "01"]
[TimeControl "180+2"]
[Date "2023.01.17"]
[WhiteClock "0:00:08"]
[BlackClock "0:00:23"]

1. e4 {[%clk 0:02:59]}  d6 {[%clk 0:03:00]} 2. d4 {[%clk 0:02:59]}  Nf6 {[%clk 0:03:01]} 3. Nc3 {[%clk 0:02:59]}  e5 {[%clk 0:03:01]} 4. Nf3 {[%clk 0:02:58]}  Nbd7 {[%clk 0:03:02]} 5. Bc4 {[%clk 0:02:58]}  Be7 {[%clk 0:03:02]} 6. O-O {[%clk 0:02:57]}  c6 {[%clk 0:03:02]} 7. a4 {[%clk 0:02:57]}  Qc7 {[%clk 0:03:02]} 8. a5 {[%clk 0:02:57]}  h6 {[%clk 0:03:02]} 9. Re1 {[%clk 0:02:56]}  Nf8 {[%clk 0:03:03]} 10. Bb3 {[%clk 0:02:55]}  Ng6 {[%clk 0:03:03]} 11. d5 {[%clk 0:02:55]}  O-O {[%clk 0:03:02]} 12. Nd2 {[%clk 0:02:55]}  Bd7 {[%clk 0:02:59]} 13. a6 {[%clk 0:02:50]}  b6 {[%clk 0:02:44]} 14. dxc6 {[%clk 0:02:39]}  Bxc6 {[%clk 0:02:45]} 15. Nc4 {[%clk 0:02:39]}  Rad8 {[%clk 0:02:39]} 16. Ne3 {[%clk 0:02:38]}  Nf4 {[%clk 0:02:38]} 17. g3 {[%clk 0:02:28]}  Ne6 {[%clk 0:02:35]} 18. Ned5 {[%clk 0:02:27]}  Bxd5 {[%clk 0:02:29]} 19. Nxd5 {[%clk 0:02:20]}  Nxd5 {[%clk 0:02:29]} 20. Bxd5 {[%clk 0:02:21]}  Rc8 {[%clk 0:02:09]} 21. c3 {[%clk 0:02:19]}  Qd8 {[%clk 0:02:04]} 22. Qg4 {[%clk 0:02:19]}  Bg5 {[%clk 0:01:32]} 23. f4 {[%clk 0:02:16]}  exf4 {[%clk 0:01:25]} 24. gxf4 {[%clk 0:02:17]}  Bh4 {[%clk 0:01:21]} 25. Rf1 {[%clk 0:02:06]}  Qe7 {[%clk 0:01:06]} 26. f5 {[%clk 0:02:00]}  Nc5 {[%clk 0:00:46]} 27. Bxh6 {[%clk 0:01:52]}  Bf6 {[%clk 0:00:45]} 28. Bxg7 {[%clk 0:01:48]}  Kh7 {[%clk 0:00:34]} 29. Kh1 {[%clk 0:00:13]}  Bxg7 {[%clk 0:00:28]} 30. f6 {[%clk 0:00:12]}  Bxf6 {[%clk 0:00:24]} 31. Qh5+ {[%clk 0:00:11]}  Kg8 {[%clk 0:00:22]} 32. Rg1+ {[%clk 0:00:09]}  Bg7 {[%clk 0:00:22]} 33. Rxg7+ {[%clk 0:00:07]}  Kxg7 {[%clk 0:00:23]} 34. Rg1+ {[%clk 0:00:07]}  Kf6 {[%clk 0:00:23]} 35. Qf5# {[%clk 0:00:08]} 1-0


[Site "https://www.chess.com"]

[Event "Titled Tuesday Blitz January 17 Late 2023"]
[White "Prado Lobo, Jonas"]
[Black "Chlpik, Martin"]
[WhiteFideId "32050666"]
[BlackFideId "14923351"]
[WhiteElo "2313"]
[BlackElo "2287"]
[Result "1-0"]
[Round "01"]
[TimeControl "180+2"]
[Date "2023.01.17"]
[WhiteClock "0:01:26"]
[BlackClock "0:00:01"]

1. Nf3 {[%clk 0:03:00]}  c5 {[%clk 0:02:59]} 2. c4 {[%clk 0:02:57]}  g6 {[%clk 0:02:55]} 3. g3 {[%clk 0:02:53]}  Bg7 {[%clk 0:02:55]} 4. Bg2 {[%clk 0:02:53]}  Nc6 {[%clk 0:02:55]} 5. O-O {[%clk 0:02:53]}  e5 {[%clk 0:02:56]} 6. d3 {[%clk 0:02:50]}  Nge7 {[%clk 0:02:56]} 7. Nc3 {[%clk 0:02:49]}  a6 {[%clk 0:02:55]} 8. Rb1 {[%clk 0:02:49]}  Rb8 {[%clk 0:02:54]} 9. a3 {[%clk 0:02:49]}  b5 {[%clk 0:02:48]} 10. cxb5 {[%clk 0:02:45]}  axb5 {[%clk 0:02:49]} 11. b4 {[%clk 0:02:46]}  cxb4 {[%clk 0:02:46]} 12. axb4 {[%clk 0:02:47]}  d5 {[%clk 0:02:45]} 13. Re1 {[%clk 0:02:16]}  O-O {[%clk 0:02:42]} 14. e4 {[%clk 0:02:17]}  d4 {[%clk 0:02:32]} 15. Nd5 {[%clk 0:02:17]}  Nxd5 {[%clk 0:02:08]} 16. exd5 {[%clk 0:02:18]}  Qxd5 {[%clk 0:02:08]} 17. Nxe5 {[%clk 0:02:17]}  Qxg2+ {[%clk 0:02:07]} 18. Kxg2 {[%clk 0:02:16]}  Nxe5 {[%clk 0:02:07]} 19. Bf4 {[%clk 0:02:08]}  Bb7+ {[%clk 0:02:06]} 20. Kf1 {[%clk 0:02:07]}  Nf3 {[%clk 0:01:42]} 21. Bxb8 {[%clk 0:02:06]}  Rxb8 {[%clk 0:00:50]} 22. Re7 {[%clk 0:01:41]}  Nxh2+ {[%clk 0:00:47]} 23. Ke1 {[%clk 0:01:40]}  Nf3+ {[%clk 0:00:37]} 24. Ke2 {[%clk 0:01:39]}  Bd5 {[%clk 0:00:27]} 25. Qc1 {[%clk 0:01:33]}  Bf6 {[%clk 0:00:18]} 26. Qf4 {[%clk 0:01:32]}  Ra8 {[%clk 0:00:07]} 27. Qxf6 {[%clk 0:01:27]}  Ra2+ {[%clk 0:00:07]} 28. Kd1 {[%clk 0:01:25]}  Rd2+ {[%clk 0:00:01]} 29. Kc1 {[%clk 0:01:26]} 1-0


[Site "https://www.chess.com"]

[Event "Titled Tuesday Blitz January 17 Late 2023"]
[White "Mendez Machado, Andre"]
[Black "Defend, Balint"]
[WhiteFideId "6603793"]
[BlackFideId "17004853"]
[WhiteElo "1974"]
[BlackElo "1673"]
[Result "0-1"]
[Round "01"]
[TimeControl "180+2"]
[Date "2023.01.17"]
[WhiteClock "0:00:02"]
[BlackClock "0:00:08"]

1. e4 {[%clk 0:02:57]}  c5 {[%clk 0:03:00]} 2. Nc3 {[%clk 0:02:56]}  d6 {[%clk 0:02:59]} 3. d4 {[%clk 0:02:55]}  cxd4 {[%clk 0:02:59]} 4. Qxd4 {[%clk 0:02:56]}  a6 {[%clk 0:03:00]} 5. Qd2 {[%clk 0:02:47]}  g6 {[%clk 0:02:59]} 6. b3 {[%clk 0:02:46]}  Bg7 {[%clk 0:02:59]} 7. Bb2 {[%clk 0:02:46]}  Nc6 {[%clk 0:02:57]} 8. O-O-O {[%clk 0:02:44]}  b5 {[%clk 0:02:55]} 9. f3 {[%clk 0:02:36]}  Bb7 {[%clk 0:02:55]} 10. h4 {[%clk 0:02:35]}  Rc8 {[%clk 0:02:44]} 11. Kb1 {[%clk 0:02:30]}  Nf6 {[%clk 0:02:30]} 12. Nd5 {[%clk 0:02:22]}  Ne5 {[%clk 0:02:17]} 13. h5 {[%clk 0:01:12]}  Nxh5 {[%clk 0:01:50]} 14. Rxh5 {[%clk 0:00:53]}  gxh5 {[%clk 0:01:49]} 15. f4 {[%clk 0:00:54]}  Bh6 {[%clk 0:01:48]} 16. Qd4 {[%clk 0:00:27]}  Bxd5 {[%clk 0:01:42]} 17. exd5 {[%clk 0:00:22]}  Bg7 {[%clk 0:01:39]} 18. fxe5 {[%clk 0:00:21]}  Bxe5 {[%clk 0:01:38]} 19. Qh4 {[%clk 0:00:15]}  Bxb2 {[%clk 0:01:37]} 20. Kxb2 {[%clk 0:00:15]}  Qc7 {[%clk 0:01:36]} 21. Bd3 {[%clk 0:00:15]}  Qc3+ {[%clk 0:01:34]} 22. Kb1 {[%clk 0:00:15]}  O-O {[%clk 0:01:22]} 23. Qxh5 {[%clk 0:00:15]}  f5 {[%clk 0:01:21]} 24. Nf3 {[%clk 0:00:15]}  Qf6 {[%clk 0:01:17]} 25. Ng5 {[%clk 0:00:13]}  Qg6 {[%clk 0:01:17]} 26. Qh4 {[%clk 0:00:13]}  Rf6 {[%clk 0:01:09]} 27. Rh1 {[%clk 0:00:12]}  h6 {[%clk 0:01:07]} 28. Ne6 {[%clk 0:00:11]}  Qg4 {[%clk 0:00:56]} 29. Qf2 {[%clk 0:00:11]}  Kf7 {[%clk 0:00:50]} 30. Rh3 {[%clk 0:00:11]}  Rg8 {[%clk 0:00:49]} 31. Rf3 {[%clk 0:00:10]}  Qxg2 {[%clk 0:00:49]} 32. Nd8+ {[%clk 0:00:09]}  Ke8 {[%clk 0:00:46]} 33. Qxg2 {[%clk 0:00:08]}  Rxg2 {[%clk 0:00:47]} 34. Nc6 {[%clk 0:00:08]}  f4 {[%clk 0:00:37]} 35. Be4 {[%clk 0:00:06]}  Re2 {[%clk 0:00:33]} 36. Bd3 {[%clk 0:00:06]}  Re3 {[%clk 0:00:33]} 37. Rf1 {[%clk 0:00:05]}  f3 {[%clk 0:00:33]} 38. Nd4 {[%clk 0:00:05]}  f2 {[%clk 0:00:32]} 39. Kb2 {[%clk 0:00:03]}  Re1 {[%clk 0:00:32]} 40. Kc3 {[%clk 0:00:03]}  h5 {[%clk 0:00:31]} 41. Kd2 {[%clk 0:00:03]}  Rxf1 {[%clk 0:00:31]} 42. Bxf1 {[%clk 0:00:04]}  h4 {[%clk 0:00:31]} 43. Ke2 {[%clk 0:00:04]}  Rf4 {[%clk 0:00:26]} 44. Nf3 {[%clk 0:00:04]}  Kf7 {[%clk 0:00:23]} 45. Kxf2 {[%clk 0:00:04]}  e5 {[%clk 0:00:21]} 46. dxe6+ {[%clk 0:00:04]}  Kxe6 {[%clk 0:00:22]} 47. Ke3 {[%clk 0:00:04]}  Rf6 {[%clk 0:00:18]} 48. Bh3+ {[%clk 0:00:04]}  Kd5 {[%clk 0:00:18]} 49. Nd2 {[%clk 0:00:05]}  Rf8 {[%clk 0:00:14]} 50. c4+ {[%clk 0:00:05]}  bxc4 {[%clk 0:00:08]} 51. Nxc4 {[%clk 0:00:05]}  Kc5 {[%clk 0:00:08]} 52. Nd2 {[%clk 0:00:05]}  d5 {[%clk 0:00:09]} 53. a3 {[%clk 0:00:05]}  d4+ {[%clk 0:00:09]} 54. Kd3 {[%clk 0:00:04]}  Re8 {[%clk 0:00:09]} 55. Bd7 {[%clk 0:00:02]}  Re3+ {[%clk 0:00:09]} 56. Kc2 {[%clk 0:00:02]}  h3 {[%clk 0:00:08]} 57. b4+ {[%clk 0:00:02]}  Kd6 {[%clk 0:00:08]} 0-1


[Site "https://www.chess.com"]

[Event "Titled Tuesday Blitz January 17 Late 2023"]
[White "Rangel, Daniel"]
[Black "Batista, Renato Luiz"]
[WhiteFideId "2124475"]
[BlackFideId "2106540"]
[WhiteElo "2207"]
[BlackElo "2174"]
[Result "1-0"]
[Round "01"]
[TimeControl "180+2"]
[Date "2023.01.17"]
[WhiteClock "0:01:09"]
[BlackClock "0:00:46"]

1. c4 {[%clk 0:02:59]}  c5 {[%clk 0:02:59]} 2. g3 {[%clk 0:02:57]}  Nf6 {[%clk 0:02:59]} 3. Bg2 {[%clk 0:02:52]}  g6 {[%clk 0:03:00]} 4. Nc3 {[%clk 0:02:52]}  Bg7 {[%clk 0:03:00]} 5. e3 {[%clk 0:02:53]}  d6 {[%clk 0:03:00]} 6. Nge2 {[%clk 0:02:54]}  O-O {[%clk 0:03:01]} 7. O-O {[%clk 0:02:55]}  Nc6 {[%clk 0:03:01]} 8. b3 {[%clk 0:02:55]}  Bd7 {[%clk 0:03:02]} 9. Bb2 {[%clk 0:02:56]}  Rb8 {[%clk 0:03:02]} 10. d3 {[%clk 0:02:54]}  a6 {[%clk 0:03:02]} 11. Qd2 {[%clk 0:02:49]}  b5 {[%clk 0:03:02]} 12. Nd5 {[%clk 0:02:48]}  e6 {[%clk 0:02:55]} 13. Nxf6+ {[%clk 0:02:44]}  Bxf6 {[%clk 0:02:56]} 14. Bxf6 {[%clk 0:02:45]}  Qxf6 {[%clk 0:02:57]} 15. Rac1 {[%clk 0:02:43]}  Rfd8 {[%clk 0:02:53]} 16. cxb5 {[%clk 0:02:34]}  axb5 {[%clk 0:02:52]} 17. d4 {[%clk 0:02:35]}  cxd4 {[%clk 0:02:48]} 18. Bxc6 {[%clk 0:02:33]}  Bxc6 {[%clk 0:02:42]} 19. Rxc6 {[%clk 0:02:34]}  dxe3 {[%clk 0:02:32]} 20. fxe3 {[%clk 0:02:26]}  Qe5 {[%clk 0:02:21]} 21. Qd4 {[%clk 0:02:20]}  Ra8 {[%clk 0:02:10]} 22. Nc3 {[%clk 0:02:04]}  b4 {[%clk 0:02:05]} 23. Na4 {[%clk 0:01:52]}  Qg5 {[%clk 0:01:46]} 24. Rc7 {[%clk 0:01:47]}  Rf8 {[%clk 0:01:29]} 25. Qf4 {[%clk 0:01:42]}  Qxf4 {[%clk 0:01:16]} 26. gxf4 {[%clk 0:01:42]}  Rfd8 {[%clk 0:01:13]} 27. Rfc1 {[%clk 0:01:32]}  Kg7 {[%clk 0:01:12]} 28. Rb7 {[%clk 0:01:31]}  Kf6 {[%clk 0:01:05]} 29. Rcc7 {[%clk 0:01:29]}  Rf8 {[%clk 0:01:04]} 30. Rxb4 {[%clk 0:01:29]}  Kf5 {[%clk 0:01:04]} 31. Kf2 {[%clk 0:01:28]}  d5 {[%clk 0:01:04]} 32. Rbb7 {[%clk 0:01:27]}  f6 {[%clk 0:01:02]} 33. Rxh7 {[%clk 0:01:25]}  Rac8 {[%clk 0:01:02]} 34. Rhc7 {[%clk 0:01:25]}  Rce8 {[%clk 0:01:00]} 35. Nc3 {[%clk 0:01:17]}  Rh8 {[%clk 0:00:58]} 36. Ne2 {[%clk 0:01:11]}  Rxh2+ {[%clk 0:00:56]} 37. Kf3 {[%clk 0:01:11]}  g5 {[%clk 0:00:46]} 38. Ng3+ {[%clk 0:01:09]}  Kg6 {[%clk 0:00:46]} 39. Rg7+ {[%clk 0:01:09]} 1-0


[Site "https://www.chess.com"]